bitfinex-derivatives/quotes_SOLF0:USTF0_20250516
["timestamp","ask_amount","ask_price","bid_price","bid_amount"]
[1747367104288,58.84,172.58,172.54,6.79670932]
[1747367104492,61.08,172.61,172.54,6.79670932]
[1747367105091,61.08,172.61,172.54,67.89670932]
[1747367105493,61.08,172.63,172.57,6.79670932]
[1747367105895,61.08,172.63,172.62,5.7917]
[1747367109402,61.08,172.63,172.55,5.6507]
[1747367109594,61.08,172.63,172.55,12.44740932]
[1747367110094,66.8715,172.63,172.58,5.7928]
[1747367110797,5.7917,172.62,172.58,5.7928]
[1747367111099,61.08,172.63,172.55,3.7195]
[1747367112403,500.58,172.72,172.57,6.79670932]
[1747367112591,122.46,172.71,172.57,6.79670932]
[1747367113903,61.1,172.71,172.57,6.79670932]
[1747367114102,61.36,172.7,172.57,6.79670932]
[1747367115499,61.36,172.7,172.6,5.7921]
[1747367115801,68.15670932,172.7,172.57,6.79670932]
[1747367116006,68.15670932,172.7,172.55,5.6011]
[1747367116502,68.15670932,172.7,172.55,3.7195]
[1747367116704,5.7919,172.62,172.57,5.7931]
[1747367116904,61.32,172.61,172.55,3.7195]
[1747367117303,61.32,172.61,172.58,5.7929]
[1747367118905,61.32,172.61,172.57,5.7933]
[1747367119104,61.32,172.61,172.55,3.7195]
[1747367119501,61.32,172.61,172.58,5.7927]
[1747367126318,61.32,172.61,172.55,3.7195]
[1747367126518,60.92,172.61,172.57,6.79670932]
[1747367127216,61.1,172.65,172.57,6.79670932]
[1747367127417,60.88,172.62,172.57,6.79670932]
[1747367127815,500.58,172.72,172.6,6.79670932]
[1747367128117,61.1,172.71,172.6,6.79670932]
[1747367128421,5.7896,172.69,172.65,5.7904]
[1747367128607,60.92,172.7,172.6,6.79670932]
[1747367129110,60.98,172.69,172.63,6.79670932]
[1747367130219,60.98,172.69,172.68,5.7897]
[1747367130718,60.98,172.69,172.67,5.7899]
[1747367130913,60.98,172.69,172.63,3.7248]
[1747367131114,60.98,172.69,172.62,61.1]
[1747367131419,61.1,172.68,172.6,6.79670932]
[1747367131719,66.8897,172.68,172.63,5.7912]
[1747367132423,5.79,172.67,172.63,5.7912]
[1747367132821,61.1,172.68,172.64,5.791]
[1747367133617,66.8897,172.68,172.64,5.791]
[1747367134121,61.1,172.68,172.6,6.79670932]
[1747367134321,60.9,172.69,172.63,6.79670932]
[1747367134517,60.96,172.69,172.63,6.79670932]
[1747367134821,60.96,172.69,172.68,5.7895]
[1747367135216,60.9,172.71,172.63,67.69670932]
[1747367135417,121.82,172.71,172.64,1.9709]
[1747367135716,60.92,172.71,172.66,6.79670932]
[1747367136025,60.94,172.73,172.66,6.79670932]
[1747367136320,500.46,172.8,172.72,5.7883]
[1747367136513,66.6872,172.76,172.72,5.7883]
[1747367136914,60.9,172.76,172.69,6.79670932]
[1747367137220,60.96,172.76,172.69,6.79670932]
[1747367138521,66.7473,172.76,172.71,5.7886]
[1747367138719,60.96,172.76,172.71,5.7886]
[1747367139625,5.7873,172.75,172.71,5.7886]
[1747367140225,66.7471,172.76,172.72,5.7883]
[1747367140424,60.96,172.76,172.69,6.79670932]
[1747367140825,60.96,172.76,172.74,5.7876]
[1747367141226,60.96,172.76,172.69,6.79670932]
[1747367142424,60.96,172.76,172.73,5.7879]
[1747367143729,60.96,172.76,172.69,6.79670932]
[1747367144429,5.7876,172.75,172.71,5.7886]
[1747367144823,5.7876,172.75,172.69,6.79670932]
[1747367145025,5.7878,172.74,172.69,6.79670932]
[1747367145330,60.96,172.76,172.67,62.7864]
[1747367145524,5.7879,172.74,172.69,5.7891]
[1747367147330,60.86,172.75,172.67,62.7864]
[1747367147531,60.72,172.74,172.69,6.79670932]
[1747367147930,60.72,172.74,172.72,5.7882]
[1747367148133,60.72,172.74,172.69,6.79670932]
[1747367148926,60.72,172.74,172.71,5.7884]
[1747367149132,60.86,172.79,172.69,6.79670932]
[1747367149333,60.68,172.78,172.72,6.79670932]
[1747367149931,60.66,172.78,172.72,6.79670932]
[1747367150328,60.64,172.78,172.72,6.79670932]
[1747367151234,60.64,172.78,172.71,60.86]
[1747367151525,5.7867,172.77,172.72,5.788]
[1747367151730,60.64,172.78,172.68,60.86]
[1747367152328,60.64,172.78,172.67,8.68310932]
[1747367153032,5.7886,172.72,172.68,5.7896]
[1747367153233,60.94,172.72,172.65,60.86]
[1747367153830,60.94,172.72,172.64,10.61450932]
[1747367154033,5.7893,172.7,172.65,5.7906]
[1747367154433,5.7893,172.7,172.64,10.61450932]
[1747367154732,5.7893,172.7,172.66,5.7903]
[1747367154933,60.94,172.72,172.64,8.76760932]
[1747367155134,60.94,172.72,172.64,6.79670932]
[1747367155332,5.7896,172.69,172.64,5.7909]
[1747367155529,60.94,172.72,172.64,5.7909]
[1747367155834,60.94,172.72,172.6,1.9663]
[1747367156426,60.94,172.72,172.59,60.86]
[1747367156628,60.94,172.72,172.58,5.793]
[1747367157237,5.7917,172.63,172.58,5.793]
[1747367157433,60.88,172.62,172.57,5.7933]
[1747367158634,5.7923,172.61,172.57,5.7933]
[1747367158834,60.88,172.62,172.58,5.7929]
[1747367159029,60.88,172.62,172.56,60.86]
[1747367159236,60.82,172.63,172.56,60.86]
[1747367160435,60.82,172.63,172.57,10.86768292]
[1747367160834,60.82,172.63,172.59,5.7924]
[1747367161637,60.82,172.63,172.6,5.7922]
[1747367161837,60.82,172.63,172.57,10.86768292]
[1747367162740,60.82,172.63,172.56,60.86]
[1747367163440,5.792,172.62,172.57,5.7931]
[1747367164440,5.792,172.62,172.58,5.7929]
[1747367165244,66.6114,172.63,172.58,5.7929]
[1747367165439,60.88,172.65,172.56,60.86]
[1747367165639,60.8,172.64,172.56,60.86]
[1747367166039,60.8,172.64,172.6,5.7921]
[1747367166946,60.8,172.64,172.59,5.7926]
[1747367167244,60.8,172.64,172.56,60.86]
[1747367168343,60.8,172.64,172.55,5.7937]
[1747367168543,60.8,172.64,172.53,64.5658]
[1747367168934,121.82,172.63,172.53,64.5658]
[1747367169232,127.6116,172.63,172.53,64.5658]
[1747367169432,121.82,172.63,172.53,75.43348292]
[1747367169942,5.7918,172.62,172.58,5.793]
[1747367172945,127.6114,172.63,172.53,75.43348292]
[1747367173747,121.82,172.63,172.53,75.43348292]
[1747367174052,60.8,172.66,172.57,10.86768292]
[1747367174347,60.86,172.65,172.57,71.66768292]
[1747367174652,60.84,172.65,172.57,71.66768292]
[1747367174854,60.8,172.67,172.58,1.8272]
[1747367175042,121.62,172.67,172.64,5.791]
[1747367175243,60.8,172.7,172.58,62.6472]
[1747367175439,60.82,172.69,172.61,10.86768292]
[1747367175645,60.82,172.69,172.65,5.7903]
[1747367176247,66.5891,172.7,172.65,5.7903]
[1747367176442,60.78,172.69,172.65,5.7903]
[1747367176952,66.5694,172.69,172.65,5.7903]
[1747367177250,60.78,172.69,172.61,60.8]
[1747367177548,5.7903,172.67,172.62,5.7914]
[1747367178150,60.78,172.69,172.61,66.5919]
[1747367178449,60.78,172.69,172.61,5.7919]
[1747367179149,5.7906,172.66,172.61,5.7919]
[1747367179360,500.2,172.76,172.61,10.86768292]
[1747367179553,121.44,172.75,172.62,64.7063]
[1747367179741,5.7886,172.72,172.62,64.7063]
[1747367179945,60.62,172.71,172.67,5.7898]
[1747367180656,5.7886,172.72,172.68,5.7896]
[1747367180951,66.3688,172.71,172.62,64.7063]
[1747367182553,66.3688,172.71,172.67,5.7899]
[1747367183050,66.3688,172.71,172.62,64.7063]
[1747367183750,60.58,172.71,172.62,64.7063]
[1747367183950,60.8,172.75,172.62,64.7063]
[1747367184155,5.7882,172.73,172.69,5.7893]
[1747367187050,60.38,172.72,172.62,64.7063]
[1747367187250,60.38,172.72,172.65,10.86768292]
[1747367187451,60.8,172.75,172.7,5.7888]
[1747367187452,5.7876,172.75,172.7,5.7888]
[1747367187755,5.7876,172.75,172.66,62.659]
[1747367188153,5.7876,172.75,172.7,5.7887]
[1747367189058,60.36,172.77,172.66,62.659]
[1747367189558,5.7883,172.73,172.66,62.659]
[1747367189860,66.0683,172.73,172.66,62.659]
[1747367190160,66.0683,172.73,172.68,5.7896]
[1747367190554,5.7883,172.72,172.68,5.7896]
[1747367191258,5.7889,172.71,172.66,66.5701]
[1747367191466,60.28,172.73,172.63,60.78]
[1747367192361,5.7888,172.71,172.66,5.7903]
[1747367192955,5.7888,172.71,172.67,5.79]
[1747367193258,5.7884,172.72,172.63,60.78]
[1747367194158,10.86768292,172.84,172.63,60.78]
[1747367194362,121.22,172.83,172.65,10.86768292]
[1747367194556,60.78,172.83,172.66,1.867]
[1747367194753,60.6,172.82,172.69,10.86768292]
[1747367194954,60.78,172.83,172.7,3.7239]
[1747367195158,5.7862,172.79,172.75,5.7873]
[1747367195359,60.62,172.78,172.71,60.78]
[1747367195659,60.78,172.83,172.71,60.78]
[1747367195660,60.6,172.8,172.71,60.78]
[1747367195860,5.785,172.82,172.77,5.7865]
[1747367196058,60.78,172.83,172.72,60.64]
[1747367196261,5.7856,172.81,172.76,5.7867]
[1747367196462,60.68,172.81,172.76,5.7867]
[1747367197065,60.66,172.8,172.78,5.7861]
[1747367197959,60.66,172.8,172.77,5.7866]
[1747367198265,60.66,172.8,172.75,60.6]
[1747367198961,121.34,172.83,172.75,60.6]
[1747367199767,121.34,172.83,172.8,5.7856]
[1747367200166,5.7841,172.85,172.8,5.7856]
[1747367200367,60.54,172.84,172.75,60.6]
[1747367201265,60.54,172.84,172.73,1.867]
[1747367201565,60.54,172.84,172.7,1.8652]
[1747367201769,10.85842839,172.81,172.7,1.8652]
[1747367201956,123.04,172.8,172.7,1.8652]
[1747367202159,5.7877,172.74,172.7,1.8652]
[1747367202370,62.46,172.73,172.7,1.8652]
[1747367202975,62.46,172.73,172.7,7.6542]
[1747367203574,62.4,172.75,172.7,1.8652]
[1747367204679,62.4,172.75,172.72,5.7883]
[1747367204881,62.4,172.75,172.7,1.8652]
[1747367205376,62.36,172.78,172.7,1.8652]
[1747367205577,62.36,172.79,172.71,60.58]
[1747367206079,68.1461,172.79,172.74,5.7875]
[1747367206478,62.36,172.79,172.71,60.58]
[1747367206781,5.7865,172.78,172.73,5.7879]
[1747367207081,62.28,172.77,172.73,5.7879]
[1747367207380,62.28,172.77,172.71,60.58]
[1747367208382,500.38,172.86,172.71,60.58]
[1747367208582,122.78,172.85,172.71,62.4508]
[1747367208787,122.78,172.85,172.71,64.268]
[1747367209080,122.78,172.85,172.76,5.7867]
[1747367209281,122.78,172.85,172.71,64.268]
[1747367209779,5.7866,172.78,172.71,64.268]
[1747367209976,62.14,172.77,172.71,64.268]
[1747367211787,62.14,172.77,172.76,5.787]
[1747367212489,62.08,172.8,172.78,5.7861]
[1747367212692,62.12,172.81,172.72,62.12]
[1747367213280,122.7,172.82,172.72,62.12]
[1747367214181,62.12,172.82,172.81,5.7853]
[1747367214386,60.58,172.85,172.76,60.58]
[1747367214684,62.12,172.85,172.77,62.5814]
[1747367214879,62.14,172.86,172.77,62.5814]
[1747367215091,62.14,172.86,172.78,3.9535]
[1747367217087,62.14,172.86,172.79,5.7859]
[1747367217088,5.7844,172.84,172.79,5.7859]
[1747367217488,62.14,172.86,172.77,62.5814]
[1747367217789,62.14,172.86,172.77,2.0014]
[1747367217985,62.14,172.86,172.74,60.58]
[1747367218288,5.7847,172.83,172.78,5.7862]
[1747367218490,62.36,172.82,172.78,5.7862]
[1747367219591,68.1451,172.82,172.78,5.7862]
[1747367220483,62.36,172.82,172.78,5.7862]
[1747367220683,62.36,172.82,172.74,60.58]
[1747367220980,68.1451,172.82,172.74,60.58]
[1747367222194,5.7854,172.81,172.74,60.58]
[1747367222594,62.36,172.82,172.74,60.58]
[1747367222989,5.7854,172.81,172.76,5.787]
[1747367223293,62.36,172.82,172.74,60.58]
[1747367223594,62.36,172.82,172.77,5.7865]
[1747367224589,5.7854,172.81,172.77,5.7865]
[1747367225095,68.145,172.82,172.74,60.58]
[1747367225888,68.145,172.82,172.77,5.7864]
[1747367226799,68.145,172.82,172.78,5.7862]
[1747367227690,60.58,172.83,172.74,60.58]
[1747367227896,122.78,172.83,172.76,6.78223724]
[1747367228090,122.78,172.83,172.77,1.867]
[1747367228395,5.7839,172.86,172.77,1.867]
[1747367228595,62.24,172.85,172.77,1.867]
[1747367228801,62.22,172.86,172.79,6.78223724]
[1747367229194,68.0037,172.86,172.81,5.7853]
[1747367229500,68.0037,172.86,172.79,6.78223724]
[1747367229801,68.0037,172.86,172.81,5.7853]
[1747367230101,68.0037,172.86,172.79,6.78223724]
[1747367230396,62.22,172.86,172.79,6.78223724]
[1747367230596,62.24,172.91,172.79,68.90223724]
[1747367230799,62.24,172.91,172.82,6.78223724]
[1747367231099,62.16,172.9,172.87,5.783]
[1747367232195,68.022,172.91,172.86,5.7835]
[1747367232394,62.14,172.9,172.86,5.7835]
[1747367232901,124.34,172.91,172.87,5.7832]
[1747367233497,130.122,172.91,172.86,5.7836]
[1747367233801,124.34,172.91,172.82,69.00223724]
[1747367234403,130.1221,172.91,172.86,5.7834]
[1747367235707,130.1221,172.91,172.82,69.00223724]
[1747367236005,124.18,172.95,172.88,6.78223724]
[1747367236904,124.18,172.95,172.87,62.22]
[1747367237104,6.78223724,172.94,172.84,1.9865]
[1747367237298,6.78223724,172.94,172.79,6.78223724]
[1747367237299,6.78223724,172.94,172.82,62.22]
[1747367237798,5.7836,172.87,172.82,68.0047]
[1747367237993,62.26,172.87,172.82,68.0047]
[1747367238297,62.26,172.87,172.8,1.8751]
[1747367238493,5.7842,172.85,172.8,7.6604]
[1747367238907,5.7842,172.85,172.81,5.7852]
[1747367239201,62.26,172.87,172.78,62.2]
[1747367239606,5.7843,172.85,172.8,5.7853]
[1747367240505,5.7837,172.86,172.78,62.2]
[1747367240699,62.14,172.85,172.78,62.2]
[1747367241606,62.14,172.85,172.82,5.7849]
[1747367241906,62.14,172.85,172.78,62.2]
[1747367242811,62.14,172.85,172.83,5.7845]
[1747367244206,62.14,172.85,172.78,124.26]
[1747367244806,499.8,172.93,172.78,124.26]
[1747367245000,124.24,172.92,172.78,124.26]
[1747367245803,62.02,172.91,172.8,10.85046333]
[1747367246003,62.22,172.92,172.8,10.85046333]
[1747367246396,62.02,172.93,172.8,10.85046333]
[1747367246603,62.02,172.93,172.9,5.7822]
[1747367247105,62.02,172.93,172.86,62.22]
[1747367247106,62.32,172.92,172.88,5.7829]
[1747367247801,62.32,172.92,172.86,62.22]
[1747367248201,124.54,172.92,172.86,62.22]
[1747367248406,124.54,172.92,172.84,5.7842]
[1747367248607,124.54,172.92,172.83,1.9897]
[1747367250608,5.782,172.91,172.86,5.7834]
[1747367250911,124.54,172.92,172.82,62.22]
[1747367251302,5.7829,172.89,172.84,5.7843]
[1747367251510,62.12,172.88,172.84,5.7843]
[1747367251815,67.903,172.88,172.84,5.7843]
[1747367252112,62.12,172.88,172.83,5.7846]
[1747367252416,5.7836,172.87,172.83,5.7846]
[1747367252716,62.12,172.88,172.83,5.7846]
[1747367253016,5.7836,172.86,172.82,68.005]
[1747367253314,5.7836,172.86,172.82,5.785]
[1747367255413,62.2,172.88,172.78,64.1707]
[1747367255613,61.88,172.88,172.78,64.1707]
[1747367256116,61.88,172.88,172.85,5.7838]
[1747367256619,61.88,172.88,172.86,5.7836]
[1747367257019,61.88,172.88,172.82,61.88]
[1747367257613,67.663,172.88,172.82,61.88]
[1747367258218,5.7835,172.87,172.82,61.88]
[1747367258417,61.88,172.88,172.82,61.88]
[1747367258618,123.76,172.88,172.78,63.8507]
[1747367258813,123.76,172.88,172.82,5.7849]
[1747367259014,123.76,172.88,172.78,63.8507]
[1747367259918,129.543,172.88,172.78,63.8507]
[1747367260218,10.85046333,172.98,172.78,63.8507]
[1747367260511,5.7824,172.9,172.78,63.8507]
[1747367260717,67.8224,172.9,172.78,63.8507]
[1747367261821,67.8224,172.9,172.86,5.7836]
[1747367262025,62.04,172.9,172.86,5.7836]
[1747367262215,62.04,172.9,172.82,61.88]
[1747367262921,67.8224,172.9,172.82,61.88]
[1747367263221,67.8224,172.9,172.85,5.7837]
[1747367264919,5.7826,172.89,172.85,5.7837]
[1747367266723,5.7826,172.89,172.86,5.7836]
[1747367267422,62.04,172.9,172.82,61.88]
[1747367267920,61.78,172.91,172.82,61.88]
[1747367268127,61.78,172.91,172.83,1.9083]
[1747367268330,129.4619,172.92,172.83,1.9083]
[1747367268726,129.4619,172.92,172.88,5.7829]
[1747367269220,67.6619,172.92,172.88,5.7829]
[1747367269421,5.782,172.91,172.87,5.7832]
[1747367269923,67.522,172.91,172.87,5.7832]
[1747367270417,61.74,172.91,172.83,8.68345003]
[1747367271125,61.88,172.92,172.83,8.68345003]
[1747367271626,61.88,172.92,172.88,5.7827]
[1747367272525,123.52,172.92,172.83,8.68345003]
[1747367272728,123.52,172.92,172.83,1.9083]
[1747367272921,5.7825,172.9,172.85,5.7837]
[1747367273123,5.7825,172.9,172.83,1.9083]
[1747367273427,123.52,172.92,172.83,1.9083]
[1747367273730,123.52,172.92,172.74,1.00681335]
[1747367274020,123.52,172.92,172.65,554.49662671]
[1747367274021,6.7771572,172.75,172.6,136.64242158]
[1747367274231,6.7771572,172.68,172.6,136.64242158]
[1747367274422,5.794,172.55,172.54,193.34363237]
[1747367274621,62.7,172.55,172.54,193.34363237]
[1747367274822,62.92,172.6,172.54,193.34363237]
[1747367276730,62.92,172.64,172.55,61.9]
[1747367277822,62.92,172.64,172.57,5.7931]
[1747367278016,62.92,172.64,172.55,61.9]
[1747367278624,62.92,172.64,172.55,72.77614207]
[1747367278829,124.8,172.69,172.56,3.9131]
[1747367279129,124.8,172.69,172.57,62.92]
[1747367280324,124.8,172.69,172.64,5.791]
[1747367280523,124.8,172.69,172.61,61.92]
[1747367280725,62.9,172.69,172.61,124.84]
[1747367281429,61.92,172.73,172.61,124.84]
[1747367281632,62.9,172.72,172.61,124.84]
[1747367282231,62.9,172.72,172.71,5.7887]
[1747367282531,62.88,172.76,172.67,61.94]
[1747367282731,62.88,172.76,172.73,5.7879]
[1747367283033,62.88,172.76,172.68,61.94]
[1747367283227,62.88,172.76,172.75,5.7873]
[1747367283431,62.84,172.8,172.72,61.94]
[1747367283727,62.84,172.8,172.79,5.786]
[1747367284831,562.18,172.86,172.81,5.7852]
[1747367285038,62.84,172.84,172.81,5.7852]
[1747367285226,62.84,172.84,172.76,61.94]
[1747367285829,62.84,172.84,172.83,5.7846]
[1747367286233,62.84,172.84,172.76,61.94]
[1747367286434,62.84,172.84,172.73,1.8345]
[1747367286636,62.84,172.84,172.74,125.6]
[1747367287036,62.84,172.84,172.79,5.7856]
[1747367287730,62.84,172.84,172.73,1.8345]
[1747367287935,62.84,172.84,172.74,62.8]
[1747367288335,5.7851,172.82,172.75,5.7872]
[1747367289044,62.8,172.81,172.66,12.68580966]
[1747367289343,62.72,172.8,172.67,62.8]
[1747367291840,62.72,172.8,172.74,5.7873]
[1747367292040,62.72,172.8,172.66,12.69074216]
[1747367292041,62.72,172.8,172.71,62.8]
[1747367292951,62.8,172.81,172.71,62.8]
[1747367293248,62.64,172.84,172.71,62.8]
[1747367294248,68.4245,172.84,172.71,62.8]
[1747367294449,62.64,172.84,172.72,125.42]
[1747367294852,5.7847,172.83,172.76,5.7867]
[1747367295051,62.64,172.84,172.72,125.42]
[1747367296552,5.7854,172.81,172.74,5.7874]
[1747367297051,5.7854,172.81,172.75,5.7871]
[1747367298248,62.64,172.84,172.75,5.7871]
[1747367298453,62.44,172.8,172.75,5.7871]
[1747367298952,5.7863,172.79,172.73,5.7879]
[1747367299155,62.44,172.8,172.73,5.7879]
[1747367300251,5.7866,172.78,172.72,62.8]
[1747367300458,62.44,172.8,172.72,62.8]
[1747367300653,62.44,172.8,172.66,1.8299]
[1747367300854,5.7876,172.75,172.66,1.8299]
[1747367301148,62.44,172.74,172.66,1.8299]
[1747367302760,62.44,172.74,172.68,5.7896]
[1747367303255,62.44,172.74,172.7,5.7889]
[1747367303563,62.44,172.74,172.66,1.8299]
[1747367304347,62.44,172.74,172.63,62.8]
[1747367304553,5.7893,172.7,172.64,5.7908]
[1747367304751,62.4,172.7,172.58,3.7334]
[1747367305057,5.7906,172.66,172.6,5.792]
[1747367305453,62.4,172.7,172.59,62.8]
[1747367306062,5.7894,172.69,172.64,5.7907]
[1747367306462,62.4,172.7,172.64,5.7907]
[1747367306767,5.7894,172.69,172.64,5.7907]
[1747367306964,62.4,172.7,172.63,5.7913]
[1747367307862,62.4,172.7,172.59,62.8]
[1747367308559,62.4,172.7,172.61,5.792]
[1747367308956,5.7906,172.66,172.61,5.792]
[1747367309158,62.38,172.66,172.61,5.792]
[1747367309458,5.7908,172.65,172.6,5.7923]
[1747367310560,125.2,172.66,172.54,62.82]
[1747367311366,5.7917,172.62,172.54,62.82]
[1747367311863,5.7917,172.62,172.57,5.793]
[1747367312066,5.7921,172.61,172.57,5.793]
[1747367312266,62.3,172.62,172.54,62.82]
[1747367313566,5.7925,172.6,172.56,5.7936]
[1747367313868,62.3,172.62,172.54,62.82]
[1747367314167,62.3,172.62,172.58,5.793]
[1747367314367,62.3,172.62,172.54,62.82]
[1747367315767,62.3,172.62,172.57,5.7932]
[1747367315975,62.3,172.62,172.54,62.82]
[1747367318169,5.7933,172.58,172.54,62.82]
[1747367319569,5.7933,172.58,172.54,68.6143]
[1747367319772,5.7935,172.57,172.51,67.7682]
[1747367319969,124.38,172.62,172.51,67.7682]
[1747367320159,124.38,172.62,172.52,5.7948]
[1747367320563,124.38,172.62,172.51,67.7682]
[1747367320764,124.38,172.62,172.51,73.5634]
[1747367321060,5.7939,172.56,172.51,73.5634]
[1747367321467,5.7939,172.56,172.52,5.795]
[1747367324374,61.94,172.58,172.53,5.7946]
[1747367324573,61.94,172.58,172.51,67.7682]
[1747367325474,5.794,172.56,172.52,5.795]
[1747367325669,61.94,172.58,172.51,65.9021]
[1747367325974,124.04,172.58,172.51,65.9021]
[1747367327073,5.7937,172.56,172.51,71.6974]
[1747367327473,124.04,172.58,172.51,71.6974]
[1747367327678,5.7937,172.56,172.51,71.6974]
[1747367328174,5.7937,172.56,172.51,9.6174]
[1747367328372,5.7934,172.57,172.51,3.8221]
[1747367328578,62.1,172.58,172.51,3.8221]
[1747367328775,61.58,172.59,172.52,62.1]
[1747367329073,61.6,172.61,172.56,5.7937]
[1747367329773,62.1,172.63,172.52,62.1]
[1747367329975,61.56,172.62,172.52,62.1]
[1747367330571,5.7921,172.61,172.52,62.1]
[1747367331678,61.56,172.62,172.51,3.8221]
[1747367331887,61.56,172.62,172.53,5.7947]
[1747367333381,5.7934,172.57,172.53,5.7947]
[1747367335578,5.7937,172.56,172.53,5.7947]
[1747367335779,5.7937,172.56,172.52,5.795]
[1747367336481,5.794,172.55,172.52,5.795]
[1747367336678,5.794,172.55,172.51,71.7174]
[1747367336874,5.794,172.55,172.51,65.9221]
[1747367337276,5.794,172.55,172.51,3.8221]
[1747367337481,5.794,172.55,172.51,9.6174]
[1747367338886,5.794,172.55,172.52,5.795]
[1747367340283,61.24,172.58,172.51,3.8221]
[1747367340489,5.7946,172.54,172.48,62.12]
[1747367340782,5.7946,172.54,172.48,64.0324]
[1747367341178,5.7946,172.54,172.48,1.9124]
[1747367341378,61.24,172.58,172.48,1.9124]
[1747367341889,5.7936,172.57,172.53,5.7945]
[1747367342485,5.7936,172.57,172.48,1.9124]
[1747367343088,5.7936,172.57,172.53,5.7945]
[1747367343391,67.0331,172.58,172.48,1.9124]
[1747367343582,61.24,172.58,172.53,5.7944]
[1747367344288,5.7934,172.57,172.53,5.7944]
[1747367344681,61.24,172.58,172.48,1.9124]
[1747367344985,62.12,172.59,172.48,1.9124]
[1747367345287,62.12,172.59,172.55,5.7939]
[1747367346188,62.12,172.59,172.56,5.7937]
[1747367346890,62.12,172.64,172.53,1.9886]
[1747367347087,60.9,172.64,172.53,1.9886]
[1747367347290,123.0,172.65,172.54,10.87589831]
[1747367347483,60.9,172.67,172.55,62.829]
[1747367347684,66.6902,172.67,172.62,5.7914]
[1747367347883,66.6902,172.67,172.56,62.8715]
[1747367348791,60.9,172.67,172.56,62.8715]
[1747367349388,60.9,172.67,172.57,60.88]
[1747367350190,60.9,172.67,172.61,5.7918]
[1747367350393,60.9,172.67,172.57,60.88]
[1747367350587,5.7906,172.66,172.61,5.7917]
[1747367351094,60.9,172.67,172.57,60.88]
[1747367351392,60.9,172.67,172.56,62.8515]
[1747367351589,60.9,172.67,172.56,1.9915]
[1747367352798,71.77589831,172.67,172.56,1.9915]
[1747367353006,71.77589831,172.67,172.53,1.9886]
[1747367354604,5.7931,172.58,172.54,5.7941]
[1747367355507,60.76,172.6,172.53,1.9886]
[1747367355697,60.76,172.6,172.52,5.7948]
[1747367355897,60.76,172.6,172.51,60.86]
[1747367356098,5.7938,172.56,172.52,5.795]
[1747367356401,60.76,172.6,172.5,1.9269]
[1747367356606,121.52,172.59,172.5,1.9269]
[1747367356806,121.52,172.58,172.5,1.9269]
[1747367357010,60.86,172.57,172.5,1.9269]
[1747367357208,60.86,172.57,172.48,62.8206]
[1747367357408,60.86,172.57,172.48,1.9606]